Cogmind - Beta 13 @@@ ROGUE MODE // 2024.04.06 @ 18:19:33 Player: GlasMayne Result: Destroyed by S5-16Y(R) with Subdweller Beam Cannon Performance ------------- Evolutions (0) 0 Regions Visited (1) 200 Robots Destroyed (20) 100 Value Destroyed (450) 450 Prototype IDs (3) 60 Alien Tech Used (0) 0 Bonus (0) 0 TOTAL SCORE: 810 Bonus ------- None Cogmind --------- Core Integrity 0/250 Matter 202/300 Energy 34/100 System Corruption 0% Temperature Critical (600) Movement Rolling (110) Ox2 Location -10/Materials Parts ------- > --- POWER (1) -------- (None) > --- PROPULSION (2) --- Wheel > --- UTILITY (2) ------ Large Storage Unit Targeting Computer > --- WEAPON (2) ------- Medium Laser Light Cannon > --- INVENTORY (15) --- Ion Engine Light Ion Engine Light Treads Light Treads Aluminum Leg Aluminum Leg Aluminum Leg Aluminum Leg Compact Wheel Medium Battery (150) Sensor Array Transport Network Coupler Peak State ------------ > --- POWER ------------ Ion Engine > --- PROPULSION ------- Wheel Compact Wheel > --- UTILITY ---------- Large Storage Unit Targeting Computer > --- WEAPON ----------- Beam Cannon Beam Cannon > --- INVENTORY -------- Light Ion Engine Light Ion Engine Light Treads Light Treads Aluminum Leg Aluminum Leg Medium Laser Beam Cannon Beam Cannon Light Cannon [Rating: 8] Favorites ----------- Power Ion Engine Engine Ion Engine Propulsion Compact Wheel Wheel Compact Wheel Utility Targeting Computer Storage Large Storage Unit Processor Targeting Computer Weapon Beam Cannon Energy Gun Medium Laser Energy Cannon Beam Cannon Ballistic Gun Assault Rifle Build | -11 -10 ------- Run | Yrd Mat Slots Evolved . | . . Power . | . . Propulsion . | . . Utility . | . . Weapon . | . . Parts Attached 17 | 5 12 Power 2 | 1 1 Engine 2 | 1 1 Core . | . . Reactor . | . . Propulsion 4 | 2 2 Treads . | . . Leg . | . . Wheel 4 | 2 2 Hover . | . . Flight . | . . Utility 3 | 1 2 Device . | . . Storage 2 | 1 1 Processor 1 | . 1 Hackware . | . . Protection . | . . Artifact . | . . Weapon 8 | 1 7 Energy Gun 2 | . 2 Energy Cannon 4 | . 4 Ballistic Gun 1 | 1 . Ballistic Cannon 1 | . 1 Launcher . | . . Special Weapon . | . . Impact Weapon . | . . Slashing Weapon . | . . Piercing Weapon . | . . Special Melee Weapon . | . . Unidentified Prototypes . | . . Parts Lost 4 | . 4 Power 1 | . 1 Propulsion 1 | . 1 Utility . | . . Weapon 2 | . 2 Highest Loss Streak 4 | . 4 To Critical Strikes . | . . Average Slot Usage (%) 98 | . 98 Engine 13 | . 13 Wheel 27 | . 27 Storage 14 | . 14 Processor 13 | . 13 Energy Gun 1 | . 1 Energy Cannon 25 | . 25 Ballistic Gun 1 | . 1 Naked Turns . | . . Heaviest Build 31 | 10 31 Greatest Support 26 | 26 26 Greatest Overweight (x) 1 | 1 1 Average Overweight (x) . | . . Largest Inventory Capacity 15 | 8 15 Average Capacity 13 | 7 13 Most Carried 14 | 7 14 Average Carried 10 | 4 10 Final Capacity 15 | 8 15 Final Carried 12 | 7 12 Class Distribution -------------------- 100% | Mutant Dominant Class ---------------- Mutant | -10/Materials Resources | -11 -10 ----------- Run | Yrd Mat Matter Collected 376 | 233 143 Remotely . | . . Salvage Created 665 | . 665 Parts 42 | . 42 Haulers Intercepted 2 | . 2 Recyclers Shooed . | . . Parts Field Recycled . | . . Retrieved Matter . | . . Parts Self-Destructed . | . . Prevented . | . . Kills | -11 -10 ------- Run | Yrd Mat Combat Hostiles Destroyed 15 | . 15 Cannons 15 | . 15 Classes Destroyed 6 | . 6 Hauler 2 | . 2 Recycler 1 | . 1 Watcher 2 | . 2 Swarmer 6 | . 6 Grunt 7 | . 7 Subdweller 2 | . 2 Best Kill Streak 7 | . 7 Combat Bots Only 6 | . 6 Max Kills in Single Turn 1 | . 1 Gunslinging . | . . Exploded . | . . Melee . | . . Uniques/NPCs Destroyed . | . . Combat | -11 -10 -------- Run | Yrd Mat Hostile Shots Fired 76 | . 76 Missed 17 | . 17 Damage Taken 783 | . 783 Core 258 | . 258 Absorbed by Shields . | . . Regen/Repaired (Parts) 39 | . 39 Core Remaining (%) 100 | 100 . Volleys Fired 44 | . 44 Largest 2 | . 2 Hottest 120 | . 120 Shots Fired 86 | . 86 Gun 2 | . 2 Cannon 84 | . 84 Launcher . | . . Special . | . . Kinetic 1 | . 1 Thermal 85 | . 85 Explosive . | . . Electromagnetic . | . . Robot Hit Streak 5 | . 5 Robot Miss Streak 3 | . 3 Penetration Max . | . . Secondary Targets . | . . Shots Hit Robots 46 | . 46 Core Hits 22 | . 22 Critical Kills . | . . Critical Parts Destroyed . | . . Critical Strikes . | . . Melee Attacks . | . . Impact . | . . Slashing . | . . Piercing . | . . Sneak Attacks . | . . Combat Hostiles . | . . Follow-up Attacks . | . . Damage Inflicted 854 | . 854 Guns 12 | . 12 Cannons 842 | . 842 Explosions . | . . Melee . | . . Ramming . | . . Kinetic 12 | . 12 Thermal 842 | . 842 Explosive . | . . Electromagnetic . | . . Impact . | . . Slashing . | . . Piercing . | . . Highest Corruption . | . . Average Corruption . | . . Corruption Purged . | . . Corruption Blocked . | . . Overload Shots . | . . Overflow Damage 4 | . 4 Projectiles 4 | . 4 Explosions . | . . Melee . | . . Knockbacks . | . . Impact . | . . Kinetic . | . . Secondary . | . . Self-Inflicted Damage . | . . Shots . | . . Rammed . | . . Targets Rammed . | . . Kicked . | . . Crushed . | . . Highest Temperature 616 | . 616 Average Temperature 218 | . 218 Received Heat Transfer 454 | . 454 Effects 18 | . 18 Shutdowns 4 | . 4 Energy Bleed 1 | . 1 Interference 1 | . 1 Matter Decay 3 | . 3 Damage (major) 8 | . 8 Damage (core) 1 | . 1 Siege Activations . | . . Robots Corrupted . | . . Combat Hostiles . | . . Parts Fried . | . . Impact Corruptions . | . . Robots Melted . | . . Combat Hostiles . | . . Parts Melted 8 | . 8 Heat Transferred 1776 | . 1776 Parts Sabotaged . | . . Parts Stolen . | . . Parts Stripped . | . . Power Chain Reactions . | . . Alert | -11 -10 ------- Run | Yrd Mat Peak Influence 359 | . 359 Initial . | . . Average 195 | . 219 Maximum Alert Level 1 | . 1 Low Security (%) 41 | 100 33 Level 1 58 | . 66 Level 2 . | . . Level 3 . | . . Level 4 . | . . Level 5 . | . . High Security . | . . Max Security . | . . Squads Dispatched 2 | . 2 Investigation 2 | . 2 Extermination . | . . Reinforcement . | . . Assault . | . . Garrison . | . . Intercept . | . . Searches Triggered . | . . Construction Impeded . | . . Haulers Reinforced . | . . Active Scanning Responses . | . . Cargo Convoy Interrupts . | . . Stealth | -11 -10 --------- Run | Yrd Mat Distress Signals 4 | . 4 Communications Jammed . | . . Distress Signals . | . . Times Spotted 24 | . 24 Peak Tracking Total 5 | . 5 Tactical Retreats 2 | . 2 Traps | -11 -10 ------- Run | Yrd Mat Traps Triggered . | . . Indirectly . | . . Trap Hack Attempts . | . . Triggered . | . . Disarmed . | . . Reprogrammed . | . . Reused . | . . Traps Extracted . | . . Installed . | . . Triggered . | . . Machines | -11 -10 ---------- Run | Yrd Mat Machines Disabled 3 | . 3 Max in Single Turn 1 | . 1 Machines Repaired . | . . Machines Dismantled . | . . Machines Sabotaged . | . . Overloaded Fab Kills . | . . Hacking | -11 -10 --------- Run | Yrd Mat Machines Accessed 5 | . 5 Terminals 3 | . 3 Fabricators . | . . Repair Stations 1 | . 1 Recycling Units 1 | . 1 Scanalyzers . | . . Garrison Access . | . . Total Hacks 18 | . 18 Successful 11 | . 11 Failed 7 | . 7 Catastrophic . | . . Database Lockouts . | . . Manual . | . . Terminals 13 | . 13 Fabricators . | . . Repair Stations 3 | . 3 Recycling Units 2 | . 2 Scanalyzers . | . . Garrison Access . | . . Terminal Hacks 8 | . 8 Record 1 | . 1 Prototype ID Bank 2 | . 2 Terminal Index 1 | . 1 Locate Traps 2 | . 2 Patrol Status 1 | . 1 Transport Status 1 | . 1 Fabricator Hacks . | . . Repair Station Hacks 2 | . 2 Scan Component 1 | . 1 Repair 1 | . 1 Recycling Unit Hacks 1 | . 1 Report Inventory 1 | . 1 Scanalyzer . | . . Garrison Access Hacks . | . . Unauthorized Hacks . | . . Terminals . | . . Fabricators . | . . Repair Stations . | . . Recycling Units . | . . Scanalyzers . | . . Garrison Access . | . . Data Cores Recovered . | . . Used . | . . Hacking Detections 4 | . 4 Full Trace Events 2 | . 2 Feedback Events . | . . Feedback Blocked . | . . Robot Schematics Acquired . | . . Robots Built . | . . Authchips . | . . Time . | . . Total Robot Build Rating . | . . Part Schematics Acquired . | . . Parts Built . | . . Authchips . | . . Time . | . . Total Part Build Rating . | . . Parts Repaired 1 | . 1 Time 26 | . 26 Parts Recycled . | . . Recycled Matter . | . . Retrieved Matter . | . . Retrieved Components . | . . Parts Scanalyzed . | . . Part Schematics Acquired . | . . Parts Damaged . | . . Bothacking | -11 -10 ------------ Run | Yrd Mat Used RIF Installer . | . . Robots Hacked . | . . Non-combat . | . . Combat . | . . Robot Hacks Applied . | . . Relay Couplers Released . | . . Fabnet Peak Effective % . | . . Robots Rewired . | . . Allies Hacked . | . . Hacks Repelled . | . . Allies | -11 -10 -------- Run | Yrd Mat Total Allies . | . . Largest Group . | . . Highest-Rated Group . | . . Highest-Rated Ally . | . . Total Orders . | . . Ally Attacks . | . . Total Damage . | . . Kills . | . . Allies Corrupted . | . . Allies Melted . | . . Intel | -11 -10 ------- Run | Yrd Mat Robot Analysis Total . | . . Derelict Logs Recovered . | . . Drone Launches . | . . Drone Recoveries . | . . Exploration | -11 -10 ------------- Run | Yrd Mat Turns Passed 818 | 90 728 Spaces Moved 602 | 84 518 Core 4 | 4 . Treads . | . . Legs . | . . Wheels 598 | 80 518 Hover . | . . Flight . | . . Fastest Speed 50 | 50 90 Average Speed 100 | 90 102 Slowest Speed 115 | 100 115 Overloaded Moves . | . . Propulsion Burnouts . | . . Robots Hopped . | . . Cave-ins Triggered . | . . Exploration Rate (%) 30 | 4 56 Regions Visited 1 Branch Regions . Pre-discovered Areas . | . . Known Exits Taken . | . . Unknown Exits Taken 1 | 1 . Scrap Searched . | . . Spaces Dug . | . . Terrain Destroyed . | . . Melee . | . . Projectile . | . . AOE . | . . Terrain Rammed . | . . Walls Destroyed . | . . Machines Disabled . | . . Actions | -11 -10 --------- Run | Yrd Mat Total 724 | 95 629 Wait 36 | . 36 Move 601 | 83 518 Hop . | . . Pick Up 17 | 7 10 Fast Attach 9 | 5 4 Attach 3 | . 3 Detach 2 | . 2 Swap 5 | . 5 Drop 7 | . 7 Fire 44 | . 44 Melee . | . . Ram . | . . Kick . | . . Crush . | . . Escape Stasis . | . . Rewire . | . . Trap . | . . Miscellaneous . | . . Route ------- -11/Scrapyard -10/Materials (discovered 2 exits: [*Mat] / [*Min]) History --------- Turn | Location | Event 28 | -11/Scrapyard | Discovered new exit (range 15) 91 | -11/Scrapyard | Entered Materials 178 | -10/Materials | Discovered new exit (range 16) 320 | -10/Materials | Build established: Mutant 600 | -10/Materials | Derelicts attacked the area 645 | -10/Materials | Discovered new exit (range 10) 731 | -10/Materials | Repaired Wheel 791 | -10/Materials | Core integrity fell below 50% 815 | -10/Materials | Core integrity fell below 20% 819 | -10/Materials | Destroyed by S5-16Y(R) with Subdweller Beam Cannon Last Messages --------------- 00733_ Acquired Wheel. 00802_ Repair Station disabled. 00802_ Backup Laser I tumbles out of repair station. 00802_ Backup Plating I tumbles out of repair station. 00804_ Ion Engine destroyed. 00804_ Critical hit (Meltdown: +250). 00805_ D3-925(R) destroyed. 00811_ Overheating: Matter decay (-64). 00811_ Beam Cannon destroyed. 00812_ Overheating: Wheel damaged (-23). 00812_ Overheating: Lrg. Storage Unit damaged (-47). 00812_ Com. Wheel destroyed. 00813_ Overheating: Matter decay (-24). 00814_ Sub. Power Source melted. 00814_ Sub. Laser melted. 00814_ Y7-AJC(R) destroyed. 00816_ Beam Cannon destroyed. 00817_ Overheating: System interference. 00817_ Targeting Computer temporarily disabled. 00819_ Overheating: Core damaged (-25). Map ----- +----------------------------------------------------+ | ????????????# """ """ #??######"T" | | ????????????# """ """ #?# # | | ????????????# """ """ ### #"" | | ????????????# # + #"Y " | | ????????????#######+###### # #"" " | | ?????????????# ##### # # " | | ?????????????# < + # " | | ?????????????# ####### # " | | ?????????????##### #?????# # | | ?????????????????# #?????# # | | ?????????????????#! ################ | | ?????????????????#= % ^ | | ?????????????????#%* | | ?????????????????#= | | ???????########### ############### | | ???????# """ """ # #???########### | | ???????# """ """ # #???# # | | ???????# """ """ # #???# # | | ???????# + #???# # | | ???????# # #???# """ [# | | ???????# # #???# """"" # | | ???????# # #????? """"" +% | | ???????# ! # #???# """"" %# | | ???????##" ###;## #???# """ # | | ????????#"R" R!# #??############ | | ????????#"""@ &%= ####"T"# ##### | | ????????## =*# !% | | ?????????## &%# = | | ??????????######## """"" | | ?????????????????## ^ """" %### | | ??????????????????# """"" #?### | | ??????????????????# % ##### | | ??????????????????# ^ ^ ## | | ??????????????????# """" | | ???????????????? """" | | ????????????????### """"" | | ??????????????????### ^ # | | ????????????????????# # "! | | ????????????????????# #?"! | | ????????????????????# #### | | ????????????????????# [% | | ????????????????????#^## ####### | | ????????????????????#^?# ??????# | | ?????????????????????^?#! !??????+ | | ?????????????????????^?##!!!!#??????# | | ?????????????????????^??#####???????# | | ????????????????????????????????????# | | ????????????????????????????????????# | | ????????????????????????????????????# | | ????????????????????????????????????# | +----------------------------------------------------+ Best States ------------- Heat Dissipation 25 Energy Generation 10 Energy Capacity 250 Matter Stores 300 Matter Capacity 300 Sight Range 16 Terrain Scan Density 10 Evasion (%) 42 Targeting Accuracy 5 Item Schematics ----------------- None Robot Schematics ------------------ None Fabricated ------------ Nothing Alien Tech Used ----------------- None Achievements -------------- None Challenges ------------ None Game ------ Seed CargoFortressBoregun Manual? 0 Play Time 00:14:46 Cumulative 6.0 hours Start 2024.04.06 @ 18:02:26 End 2024.04.06 @ 18:19:33 Sessions 2 Manual Loads 0 Difficulty Rogue Special Mode None Game No. 10 Rogue 10 Adventurer 0 Explorer 0 Win Type - Total 0 Types 0/0/0/0/0/0/0/0/0 Lore% 15 Gallery% 15 Achievement% 12 Wizard Run 0 Options --------- Layout 0 ASCII 0 Keyboard 1 Movement Arrows Keybinds 0 Fullscreen 1 Font 18/SmallcapsGlow Map View 76x50 Zoom Use 0% Tactical HUD 1 Map Filters NONE Filters NONE Steam 1 RUN: 06a1e866-0144-42c6-89b2-64fddce82cc6